[Event "Szansa Chess Open 2022"]
[Site "Warsaw"]
[Date "2022.09.17"]
[Round "5"]
[White "Lewicki, Miroslaw"]
[Black "Kaczmarska, Joanna"]
[Result "0-1"]
[ECO "A01"]
[WhiteElo "2336"]
[BlackElo "1948"]
[Annotator "ChessBase"]
[PlyCount "133"]
[EventDate "2022.09.17"]
[EventCountry "POL"]
[SourceTitle "playchess.com"]
[Source "ChessBase"]
[SourceQuality "1"]
[TimeControl "900+10"]

1. b3 {[%emt 0:00:02]} Nf6 {[%emt 0:00:02]} 2. Bb2 {[%emt 0:00:01]} g6 {[%emt 0:00:02]} 3. g3 {[%emt 0:00:01]} Bg7 {[%emt 0:00:02]} 4. Bg2 {[%emt 0:00:01]} O-O {[%emt 0:00:06]} 5. e3 {[%emt 0:00:02]} d6 {[%emt 0:00:06]} 6. Ne2 {[%emt 0:00:03]} e5 {[%emt 0:00:02]} 7. O-O {[%emt 0:00:02]} Re8 {[%emt 0:00:06]} 8. d4 {[%emt 0:00:02]} Nbd7 {[%emt 0:00:18]} 9. c4 {[%emt 0:00:04]} c6 {[%emt 0:00:06]} 10. Nbc3 {[%emt 0:00:04]} Qe7 {[%emt 0:00:23]} 11. Ba3 {[%emt 0:00:22]} exd4 {[%emt 0:03:01]} 12. Nxd4 {[%emt 0:00:05]} Nc5 {[%emt 0:00:53]} 13. Qc2 {[%emt 0:00:02]} Nfe4 {[%emt 0:00:56]} 14. Nxe4 {[%emt 0:00:03]} Nxe4 {[%emt 0:00:02]} 15. Rad1 {[%emt 0:00:01]} Bxd4 {[%emt 0:00:29]} 16. Rxd4 {[%emt 0:00:04]} Bf5 {[%emt 0:00:07]} 17. g4 {[%emt 0:00:05]} c5 {[%emt 0:00:22]} 18. Rdd1 {[%emt 0:00:30]} Bxg4 {[%emt 0:04:39]} 19. f3 {[%emt 0:00:02]} Bh5 {[%emt 0:00:40]} 20. fxe4 {[%emt 0:00:01]} Bxd1 {[%emt 0:00:05]} 21. Rxd1 {[%emt 0:00:02]} Qg5 {[%emt 0:00:03]} 22. Qd3 {[%emt 0:01:06]} Re6 {[%emt 0:01:32]} 23. Bb2 {[%emt 0:00:02]} Rae8 {[%emt 0:00:08]} 24. Qc3 {[%emt 0:00:05]} f6 {[%emt 0:00:05]} 25. Kh1 {[%emt 0:00:19]} Qg4 {[%emt 0:00:42]} 26. Rf1 {[%emt 0:00:07]} Rf8 {[%emt 0:00:09]} 27. Qd3 {[%emt 0:00:10]} Kg7 {[%emt 0:01:41]} 28. Qd5 {[%emt 0:00:12]} Rf7 {[%emt 0:00:02]} 29. h3 {[%emt 0:00:09]} Qe2 {[%emt 0:00:17]} 30. Qxe6 {[%emt 0:00:16]} Qxb2 {[%emt 0:00:02]} 31. Qxd6 {[%emt 0:00:10]} b6 {[%emt 0:00:25]} 32. e5 {[%emt 0:00:08]} fxe5 {[%emt 0:00:01]} 33. Rxf7+ {[%emt 0:00:02]} Kxf7 {[%emt 0:00:01]} 34. a4 {[%emt 0:00:23]} Qc1+ {[%emt 0:00:22]} 35. Kh2 {[%emt 0:00:01]} Qxe3 {[%emt 0:00:02]} 36. Qd5+ {[%emt 0:00:26]} Kg7 {[%emt 0:00:24]} 37. Qf3 {[%emt 0:00:27]} Qd2 {[%emt 0:01:35]} 38. Kg3 {[%emt 0:00:56]} Qe1+ {[%emt 0:00:07]} 39. Kh2 {[%emt 0:00:14]} Qd2 {[%emt 0:00:10]} 40. Qe4 {[%emt 0:00:01]} h5 {[%emt 0:00:21]} 41. h4 {[%emt 0:00:08]} Qc3 {[%emt 0:00:25]} 42. Bf1 {[%emt 0:00:23]} Qb2+ {[%emt 0:00:27]} 43. Kg3 {[%emt 0:00:19]} Qxb3+ {[%emt 0:00:03]} 44. Bd3 {[%emt 0:00:01]} Qxa4 {[%emt 0:00:43]} 45. Qxg6+ {[%emt 0:00:04]} Kf8 {[%emt 0:00:07]} 46. Qf6+ {[%emt 0:00:08]} Ke8 {[%emt 0:00:17]} 47. Qxe5+ {[%emt 0:00:20]} Kd8 {[%emt 0:00:06]} 48. Qxh5 {[%emt 0:00:25]} Qa1 {[%emt 0:00:01]} 49. Qd5+ {[%emt 0:00:08]} Ke7 {[%emt 0:00:12]} 50. h5 {[%emt 0:00:22]} Qe1+ {[%emt 0:00:19]} 51. Kf4 {[%emt 0:00:09]} Qh4+ {[%emt 0:00:06]} 52. Ke3 {[%emt 0:00:13]} Qg3+ {[%emt 0:00:13]} 53. Kd2 {[%emt 0:00:05]} Qf2+ {[%emt 0:00:03]} 54. Kc3 {[%emt 0:00:09]} Qe1+ {[%emt 0:00:02]} 55. Kb3 {[%emt 0:00:28]} Qb4+ {[%emt 0:00:12]} 56. Kc2 {[%emt 0:00:02]} Qa4+ {[%emt 0:00:04]} 57. Kd2 {[%emt 0:00:02]} Qa5+ {[%emt 0:00:08]} 58. Ke2 {[%emt 0:00:05]} Qa2+ {[%emt 0:00:07]} 59. Kf3 {[%emt 0:00:02]} Qh2 {[%emt 0:00:08]} 60. Qg5+ {[%emt 0:00:08]} Ke8 {[%emt 0:00:31]} 61. Bg6+ {[%emt 0:00:44]} Kd7 {[%emt 0:00:03]} 62. Qf5+ {[%emt 0:00:02]} Ke7 {[%emt 0:00:13]} 63. Qf7+ {[%emt 0:00:04]} Kd8 {[%emt 0:00:05]} 64. Qf8+ {[%emt 0:00:11]} Kd7 {[%emt 0:00:08]} 65. Bf5+ {[%emt 0:00:13]} Kc7 {[%emt 0:00:27]} 66. Qc8+ {[%emt 0:00:03]} Kd6 {[%emt 0:00:03]} 67. Qb8+ {[%emt 0:00:03]} 0-1

[Event "Szansa Chess Open 2022"]
[Site "Warsaw"]
[Date "2022.09.17"]
[Round "5"]
[White "Rudzinska, Michalina"]
[Black "Podgorski, Maciej"]
[Result "0-1"]
[ECO "C24"]
[WhiteElo "2289"]
[BlackElo "2059"]
[Annotator "TA"]
[PlyCount "82"]
[EventDate "2022.09.17"]
[EventCountry "POL"]
[SourceTitle "playchess.com"]
[Source "ChessBase"]
[SourceQuality "1"]
[TimeControl "900+10"]

{[%evp 10,82,37,4,0,0,0,0,0,0,11,5,6,-16,-12,-85,-70,-82,-95,-86,-99,-89,-91,-110,-121,-136,-120,-149,-145,-159,-137,-189,-186,-185,-179,-180,-181,-176,-176,-178,-165,-159,-164,-167,-171,-152,-127,-127,-127,-294,-281,-1252,-1012,-1263,-1066,-933,-750,-1642,-1555,-4802,-1827,-29971,-29972,-29972,-29970,-5277,-2950,-2106,-2106,-1681,-1682,-29973,-29974,-29968,-10870]} 1. e4 {[%emt 0:00:01]} e5 {[%emt 0:00:02]} 2. Bc4 {[%emt 0:00:03]} Nf6 {[%emt 0:00:03]} 3. d3 {[%emt 0:00:05]} c6 {[%emt 0:00:02]} 4. Nf3 d5 {[%emt 0:00:41][%cal Bd7d5,Bd5d4][%mdl 32]} 5. Bb3 {[%emt 0:00:07]} Bd6 {[%emt 0:00:03]} 6. Nc3 {[%emt 0:00:09][%cal Re4d5]} O-O {[%emt 0:01:26] C24: Bishop's Opening: 2...Nf6.} 7. Bg5 {[%emt 0:00:10]} d4 {[%emt 0:00:30]} 8. Ne2 {[%emt 0:00:03]} h6 {[%emt 0:00:01] The position is equal.} 9. Bh4 {[%emt 0:00:04]} a5 {[%emt 0:00:31]} 10. a4 {[%emt 0:00:04]} Na6 {[%emt 0:00:35] [#]} 11. O-O $146 {[%emt 0:02:09]} ({Predecessor:} 11. c3 dxc3 12. bxc3 Nc5 13. Bc2 Bg4 14. h3 Bxf3 15. gxf3 Ne6 16. Rg1 c5 17. Qd2 {1-0 (48) Ter Schegget,B (2139)-Muheim,S (2005) Sibenik 2007}) 11... Nc5 {[%emt 0:00:01]} 12. Nexd4 {[%emt 0:00:40]} exd4 $17 {[%emt 0:00:51]} 13. e5 $1 {[%emt 0:00:03]} Nxb3 {[%emt 0:00:26]} 14. cxb3 {[%emt 0:00:49]} Be7 {[%emt 0:00:16] aiming for ...Nd5.} 15. exf6 {[%emt 0:00:07]} Bxf6 {[%emt 0:00:01]} 16. Bg3 {[%emt 0:00:22]} Bg4 {[%emt 0:01:36]} 17. h3 {[%emt 0:00:35] [#]} Bh5 {[%emt 0:00:07]} 18. Re1 {[%emt 0:01:35]} Qd5 {[%emt 0:00:10]} 19. Re4 {[%emt 0:03:00]} Rfe8 {[%emt 0:00:31]} 20. Qc2 {[%emt 0:00:48]} (20. Qb1 $17) 20... Rxe4 $19 {[%emt 0:03:21]} 21. dxe4 {[%emt 0:00:01]} d3 {[%emt 0:00:05]} 22. exd5 {[%emt 0:03:19]} dxc2 {[%emt 0:00:02]} 23. Rc1 {[%emt 0:01:18]} Bg6 $36 {[%emt 0:00:08][%mdl 2048] Keeping White busy.} (23... cxd5 24. Rxc2 Rd8 25. Rc7 $11) 24. Be5 {[%emt 0:00:57]} cxd5 {[%emt 0:00:21] White must now prevent ...Bxe5.} 25. Bxf6 {[%emt 0:00:08]} gxf6 {[%emt 0:00:02][%mdl 4096] Endgame KRB-KRN} 26. Nd4 {[%emt 0:00:06]} Kg7 {[%emt 0:03:00]} 27. f3 {[%emt 0:00:36]} Re8 {[%emt 0:00:36]} 28. Kf2 {[%emt 0:00:02] Against Re3} Bd3 {[%emt 0:00:35]} ({Worse is} 28... Rc8 29. Ke3 $11) 29. g4 $2 {[%emt 0:00:26] [#] White does not recover from this.} (29. h4 $17 {was necessary.}) 29... f5 $1 {[%emt 0:01:05]} ({Stronger than} 29... Rc8 30. Ke3 Bh7 31. Nb5 $15) 30. Nxf5+ $2 {[%emt 0:00:39]} (30. Kg3) 30... Bxf5 {[%emt 0:00:10]} 31. gxf5 {[%emt 0:00:02] KR-KR} Rc8 {[%emt 0:00:09]} 32. Ke3 {[%emt 0:00:04]} Kf6 {[%emt 0:00:05]} 33. Kd4 {[%emt 0:01:34]} Kxf5 {[%emt 0:00:05]} 34. Kxd5 {[%emt 0:00:03]} Kf4 {[%emt 0:00:04]} 35. Kd4 {[%emt 0:00:15]} Kxf3 {[%emt 0:00:24]} 36. Kd3 {[%emt 0:00:01]} Rd8+ {[%emt 0:00:30]} 37. Kc3 {[%emt 0:00:25]} Ke3 {[%emt 0:00:17][%cal Rd8c8]} 38. Re1+ {[%emt 0:00:18]} Kf2 {[%emt 0:00:02]} 39. Rc1 {[%emt 0:00:02]} Rc8+ {[%emt 0:00:11]} 40. Kd2 {[%emt 0:00:02]} f5 {[%emt 0:00:06][%cal Bf7f5,Bf5f4][%mdl 32]} 41. h4 {[%emt 0:00:24]} f4 {[%emt 0:00:03] Weighted Error Value: White=0.75/Black=0.03 (flawless)} 0-1

[Event "Szansa Chess Open 2022"]
[Site "Warsaw"]
[Date "2022.09.17"]
[Round "5"]
[White "Janeczko, Jakub"]
[Black "Piotrowski, Daniel"]
[Result "1-0"]
[ECO "B20"]
[WhiteElo "2159"]
[BlackElo "1758"]
[Annotator "TA"]
[PlyCount "55"]
[EventDate "2022.09.17"]
[EventCountry "POL"]
[SourceTitle "playchess.com"]
[Source "ChessBase"]
[SourceQuality "1"]
[TimeControl "900+10"]

{[%evp 16,55,12,13,42,27,95,32,46,42,48,58,61,43,58,16,52,52,50,44,77,36,121,119,109,104,204,198,228,257,451,441,738,725,911,785,970,841,1074,1015,1344,1333]} 1. e4 {[%emt 0:00:02]} c5 {[%emt 0:00:02]} 2. d3 {[%emt 0:00:02]} Nc6 {[%emt 0:00:12]} 3. g3 {[%emt 0:00:02]} g6 {[%emt 0:00:08]} 4. Bg2 {[%emt 0:00:01]} Bg7 {[%emt 0:00:01]} 5. f4 {[%emt 0:00:02]} e6 {[%emt 0:00:54]} 6. Nf3 {[%emt 0:00:02]} Nge7 {[%emt 0:00:07]} 7. O-O {[%emt 0:00:03]} d5 {[%emt 0:01:15]} 8. c3 {[%emt 0:00:04]} O-O {[%emt 0:00:43]} 9. Na3 {[%emt 0:00:02]} a6 {[%emt 0:00:25] B20: Sicilian: Unusual White 2nd moves.} 10. e5 {[%emt 0:00:03]} d4 {[%emt 0:00:10]} (10... Nf5 $11 {remains equal.}) 11. c4 {[%emt 0:00:04]} (11. Nc4 $16) 11... b6 {[%emt 0:01:07] White is slightly better.} 12. Nc2 {[%emt 0:00:04] [#]} (12. Ng5 {looks sharper.} Bb7 13. Nc2 Qd7 14. Ne4) 12... a5 $146 {[%emt 0:00:04]} ({Predecessor:} 12... b5 13. b3 Bb7 14. Ng5 Qc7 15. g4 Nd8 16. Bxb7 Nxb7 17. Bd2 Rae8 18. Qf3 Kh8 {0-1 (53) Dunn,A (1840)-Mackle,D (2104) Exeter 2008}) 13. Qe2 {[%emt 0:00:40]} Rb8 14. a4 {[%emt 0:00:02]} Bb7 {[%emt 0:01:44]} 15. Bd2 {[%emt 0:00:05][%cal Bc1d2,Bd2e1,Be1h4][%mdl 32]} Nb4 {[%emt 0:01:10]} (15... h5 {seems wilder.} 16. Ng5 Nf5 17. b3 Re8) 16. Nxb4 {[%emt 0:00:08]} axb4 {[%emt 0:00:02]} 17. Be1 {[%emt 0:00:17]} Ra8 {[%emt 0:01:05]} 18. b3 {[%emt 0:02:11]} Bc6 {[%emt 0:00:01] [#]} ({Black should try} 18... Qd7 $14) 19. g4 $1 $16 {[%emt 0:00:11]} Qd7 {[%emt 0:01:09]} 20. Bh4 {[%emt 0:00:04]} Nc8 {[%emt 0:02:28]} (20... Bxf3 $16 21. Bxf3 (21. Qxf3 Ra7 $14) 21... Ra7) 21. Ng5 $18 {[%emt 0:00:39][%cal Bf3g5,Bg5e4,Be4c5][%mdl 32]} Bxg2 {[%emt 0:00:10]} 22. Qxg2 {[%emt 0:00:02]} ({Much less strong is} 22. Kxg2 $6 Ne7 $16) 22... Na7 $2 {[%emt 0:00:01] [#]} (22... Ne7 23. Ne4 h6) 23. Ne4 {[%emt 0:00:05] White is clearly winning.} f5 {[%emt 0:01:24]} (23... Rfc8 $142 24. a5 bxa5 25. Rxa5 Nc6 26. Rxc5 (26. Nxc5 Qe8 $18) 26... Ra5 27. Rxa5 Nxa5) 24. exf6 {[%emt 0:00:03]} Bh8 {[%emt 0:00:02]} 25. a5 {[%emt 0:00:45]} b5 {[%emt 0:01:20]} 26. Nxc5 {[%emt 0:00:23]} Qd6 {[%emt 0:00:06]} 27. Ne4 {[%emt 0:00:03]} Qc7 {[%emt 0:00:15]} 28. f5 {[%emt 0:00:23] Weighted Error Value: White=0.12 (very precise) /Black=0.60} 1-0

[Event "Szansa Chess Open 2022"]
[Site "Warsaw"]
[Date "2022.09.17"]
[Round "5"]
[White "Derylo, Kamil"]
[Black "Zochowski, Kacper"]
[Result "0-1"]
[ECO "A41"]
[WhiteElo "2143"]
[BlackElo "2257"]
[Annotator "TA"]
[PlyCount "182"]
[EventDate "2022.09.17"]
[EventCountry "POL"]
[SourceTitle "playchess.com"]
[Source "ChessBase"]
[SourceQuality "1"]
[TimeControl "900+10"]

{[%evp 9,182,45,52,55,70,54,66,71,79,77,86,38,41,45,35,33,22,0,58,13,53,49,57,30,72,35,32,31,33,22,27,-8,34,28,58,4,12,0,23,31,15,29,39,-17,-24,-46,162,108,114,9,11,-1,-1,-5,-3,-19,-11,-20,-20,-182,-36,-57,-12,-38,-6,-12,0,-4,0,-23,-31,-41,-31,-51,-44,-114,-108,-112,-115,-102,-89,-85,-89,-645,-256,-247,-256,-249,-215,-217,-208,-210,-216,-216,-211,-202,-201,-245,-245,-235,-101,-106,-86,-81,0,-101,0,-508,-502,-666,-680,-2569,-2546,-2342,-2224,-2021,-1737,-1696,-1646,-1620,-1072,-2560,-2234,-29951,-29949,-29952,-1010,-29962,-29963,-29965,-29966,-29972,-29962,-29961,-29962,-29963,-29964,-29965,-29965,-29964,-29962,-29961,-29961,-29961,-29962,-29962,-29962,-29962,-29963,-29965,-29965,-29964,-29959,-29959,-29960,-29959,-29959,-29954,-29953,-12792,-12109,-11528,-7072,-2991,-1116,-29966,-29967,-29965,-29968,-29966,-29965,-29974,-29976,-29976,-29979]} 1. d4 {[%emt 0:00:03]} d6 {[%emt 0:00:01]} 2. Bg5 {[%emt 0:00:04]} g6 {[%emt 0:01:29]} 3. Nc3 {[%emt 0:00:09]} Bg7 {[%emt 0:00:02]} 4. e4 {[%emt 0:00:21]} Nc6 {[%emt 0:00:55]} 5. Nge2 {[%emt 0:00:18]} h6 {[%emt 0:02:08]} 6. Be3 {[%emt 0:00:09] B06: Modern Defence.} e5 {[%emt 0:00:19]} 7. f3 {[%emt 0:00:47] [#]} exd4 $146 {[%emt 0:00:11]} ({Predecessor:} 7... Nge7 8. dxe5 Nxe5 9. Nf4 Be6 10. Qd2 a6 11. Nxe6 fxe6 12. Be2 N7c6 13. O-O Qe7 {1-0 (42) Boudre,J (2370)-Pleynet,O (1988) Marseille 2003}) 8. Nxd4 {[%emt 0:00:04] White is slightly better.} Nxd4 {[%emt 0:00:18]} 9. Bxd4 {[%emt 0:00:02]} Nf6 {[%emt 0:00:01]} 10. Bc4 {[%emt 0:00:37]} (10. Qd2 $16) 10... O-O $14 {[%emt 0:00:27]} 11. O-O {[%emt 0:00:14]} c6 {[%emt 0:00:08]} 12. Qd2 {[%emt 0:00:14]} b5 {[%emt 0:00:33]} 13. Be2 {[%emt 0:00:36]} (13. Bb3 {keeps more tension.} a5 14. a3 a4 15. Ba2) 13... b4 {[%emt 0:00:47]} (13... Be6 $11) 14. Nd1 {[%emt 0:00:20]} c5 {[%emt 0:00:06]} 15. Be3 {[%emt 0:00:02]} Kh7 {[%emt 0:00:10]} 16. Nf2 {[%emt 0:00:02]} Ne8 {[%emt 0:00:48]} 17. c3 {[%emt 0:00:16]} (17. Bxc5 $5 Bxb2 18. Rad1 $14 (18. Bxb4 Bxa1 19. Rxa1 Qe7 $14)) 17... bxc3 {[%emt 0:00:05]} 18. bxc3 {[%emt 0:00:03]} Qa5 {[%emt 0:00:01]} 19. Rac1 {[%emt 0:00:08]} Be6 {[%emt 0:00:02]} 20. c4 {[%emt 0:01:06]} (20. Rc2 $5 {[%cal Rf1b1]}) 20... Qa6 {[%emt 0:01:05]} 21. e5 {[%emt 0:00:32]} dxe5 {[%emt 0:02:19]} 22. Bxc5 {[%emt 0:00:05]} (22. Ne4 $14) 22... Rh8 {[%emt 0:00:08]} 23. Rfd1 {[%emt 0:00:58]} Nf6 {[%emt 0:00:17][%cal Oh8d8]} 24. Bd6 {[%emt 0:00:37]} Rhd8 {[%emt 0:00:37]} 25. c5 {[%emt 0:00:09]} Qa4 {[%emt 0:00:36]} 26. Rb1 {[%emt 0:04:53]} (26. Qe3 $14) 26... Ne8 $11 {[%emt 0:00:15]} 27. Bb5 {[%emt 0:00:46]} Qh4 {[%emt 0:01:03]} (27... Qxa2 $15 {keeps the upper hand.} 28. Rb2 Qa3 29. Bxe8 e4) 28. Bxe8 {[%emt 0:00:33]} (28. Rb4 $18 Qh5 29. Bxe8 Rxe8 30. c6) 28... Rxe8 $16 {[%emt 0:00:03]} 29. Re1 {[%emt 0:00:17]} ({Better is} 29. c6 $16) 29... Qc4 {[%emt 0:00:39]} 30. Bxe5 {[%emt 0:00:57]} Qxc5 {[%emt 0:00:06]} 31. Bxg7 {[%emt 0:00:11]} Kxg7 {[%emt 0:00:01]} 32. Rbc1 {[%emt 0:00:23]} Qb6 {[%emt 0:01:15]} 33. Rb1 {[%emt 0:00:16]} Rad8 {[%emt 0:00:07]} 34. Qf4 {[%emt 0:01:20]} (34. Qe2 $11 {and White is okay.} Qd4 35. Rbd1) 34... Qd4 {[%emt 0:00:11]} (34... Bxa2 $19 35. Ra1 Rxe1+ 36. Rxe1 a5) 35. Re4 {[%emt 0:00:28]} Qc5 {[%emt 0:02:25]} 36. Rbe1 {[%emt 0:00:16]} Rf8 {[%emt 0:00:11]} 37. a4 {[%emt 0:00:24]} Bf5 {[%emt 0:00:35]} 38. Re5 {[%emt 0:00:14]} Qc3 {[%emt 0:00:09]} (38... Qd4 $5 {[%cal Rd4f4]} 39. Qg3 Bd7 $11) 39. R5e3 {[%emt 0:00:14]} Qd4 {[%emt 0:00:01]} 40. Qc7 {[%emt 0:01:13]} Rd7 {[%emt 0:00:20]} 41. Qc6 {[%emt 0:00:18]} Rd6 $40 {[%emt 0:00:02][%mdl 128] Black attacks.} 42. Qc7 {[%emt 0:00:06]} (42. Qb7 $15) 42... Rc8 $1 $17 {[%emt 0:00:20]} 43. Qe7 {[%emt 0:00:03] [#]} Rd7 $1 {[%emt 0:00:34]} 44. Qa3 {[%emt 0:00:39]} Rc2 {[%emt 0:00:01]} 45. g4 {[%emt 0:00:29]} Be6 {[%emt 0:00:08] Black has more active pieces.} 46. Qd3 $2 {[%emt 0:00:41][%mdl 8192]} (46. R1e2 $17 Rdc7 47. Rd3) 46... Qxa4 $2 {[%emt 0:00:14]} (46... Qb2 47. Qb5 Rxf2 48. Qxb2+ Rxb2) 47. Qe4 $19 {[%emt 0:00:10]} Qxe4 {[%emt 0:00:03]} 48. Nxe4 {[%emt 0:00:02]} Rb7 {[%emt 0:00:07]} 49. Rc3 {[%emt 0:00:06]} Rxc3 {[%emt 0:00:06]} 50. Nxc3 {[%emt 0:00:02][%mdl 4096] Endgame KRB-KRN} Rb3 {[%emt 0:00:01]} 51. Rc1 {[%emt 0:00:04]} a5 {[%emt 0:00:04][%cal Oa5a4]} 52. Kf2 {[%emt 0:00:01]} Rb2+ {[%emt 0:00:03]} 53. Ke3 {[%emt 0:00:09]} Rxh2 {[%emt 0:00:58]} 54. Ra1 {[%emt 0:00:00]} Rc2 {[%emt 0:00:01]} (54... Bd7 $19 {has better winning chances. Threatens to win with ...Rc2.} 55. Rxa5 Rh3) 55. Kd3 $17 {[%emt 0:00:01]} Rf2 56. Ke3 {[%emt 0:00:02]} Rc2 {[%emt 0:00:11]} 57. Kd3 {[%emt 0:00:01]} Rh2 {[%emt 0:00:02]} (57... Rb2 $17 {...f5 is the strong threat.} 58. Rxa5 f5) 58. Rxa5 {[%emt 0:00:15][%mdl 8192] [#] White is on the road to losing.} (58. Ke3 $1 $11) 58... Rh3 $1 $19 {[%emt 0:00:01][%csl LRf3,LRg4]} 59. Ke2 {[%emt 0:00:02]} Bxg4 $1 {[%emt 0:00:02]} 60. fxg4 {[%emt 0:00:06]} Rxc3 {[%emt 0:00:02] KR-KR} 61. Kf2 {[%emt 0:00:02]} Rb3 {[%emt 0:00:11]} 62. Rc5 {[%emt 0:00:03]} Kf6 {[%emt 0:00:02]} 63. Ra5 {[%emt 0:00:04]} Rc3 {[%emt 0:00:14]} 64. Rb5 {[%emt 0:00:01]} Rh3 {[%emt 0:00:10] Strongly threatening ...h5.} 65. Kg2 {[%emt 0:00:05]} Re3 {[%emt 0:00:01]} 66. Ra5 {[%emt 0:00:17]} Re5 {[%emt 0:00:01]} 67. Ra7 {[%emt 0:00:13]} Kg5 {[%emt 0:00:04]} (67... h5 $142 68. gxh5 gxh5 69. Ra8 Rg5+ 70. Kf3 Rb5 71. Rh8 Rc5 72. Kg3 Kg7 73. Re8 Rc4 74. Re5 Kg6 75. Re8 h4+ 76. Kh3 Ra4 77. Rg8+ Kf6 78. Rd8 Kg6 79. Rg8+ Kh7 80. Rd8 Kh6 81. Rh8+ Kg5 82. Rg8+ Kh5 83. Rh8+ Kg6 84. Rg8+) 68. Ra4 {[%emt 0:00:21]} h5 {[%emt 0:00:04]} 69. gxh5 {[%emt 0:00:02]} Kxh5 {[%emt 0:00:00]} 70. Kg3 {[%emt 0:00:01]} Kg5 {[%emt 0:00:04]} 71. Rg4+ {[%emt 0:00:02]} Kf6 {[%emt 0:00:00]} 72. Ra4 {[%emt 0:00:02]} g5 {[%emt 0:00:02]} 73. Ra7 {[%emt 0:00:17]} Kg6 {[%emt 0:00:06]} 74. Ra6+ {[%emt 0:00:07]} f6 {[%emt 0:00:01]} 75. Kg4 {[%emt 0:00:02]} Rb5 {[%emt 0:00:01]} 76. Rc6 {[%emt 0:00:02]} Rb4+ {[%emt 0:00:01]} 77. Kg3 {[%emt 0:00:01]} Re4 {[%emt 0:00:07]} 78. Ra6 {[%emt 0:00:02]} Kf5 {[%emt 0:00:01]} 79. Ra3 {[%emt 0:00:04]} Re5 {[%emt 0:00:07]} 80. Rb3 {[%emt 0:00:03]} Kg6 {[%emt 0:00:05]} 81. Rb6 {[%emt 0:00:02]} Re3+ {[%emt 0:00:08]} 82. Kg4 {[%emt 0:00:05]} Re1 {[%emt 0:00:03]} 83. Ra6 {[%emt 0:00:05]} Rg1+ {[%emt 0:00:01]} 84. Kf3 {[%emt 0:00:02]} Rb1 {[%emt 0:00:14]} 85. Kg4 {[%emt 0:00:02]} Rb4+ {[%emt 0:00:00]} 86. Kg3 {[%emt 0:00:02]} g4 {[%emt 0:00:03] ( -> ...Kg5)} 87. Ra8 {[%emt 0:00:08]} Kg5 {[%emt 0:00:01] Black mates.} 88. Rg8+ {[%emt 0:00:10]} Kf5 {[%emt 0:00:01]} 89. Kh4 {[%emt 0:00:34]} Rb1 {[%emt 0:00:07]} 90. Kg3 {[%emt 0:00:07]} Rb3+ {[%emt 0:00:01]} 91. Kg2 {[%emt 0:00:03]} Kf4 {[%emt 0:00:01] Weighted Error Value: White=0.49/Black=0.36} 0-1

[Event "Szansa Chess Open 2022"]
[Site "Warsaw"]
[Date "2022.09.17"]
[Round "5"]
[White "Alvarado, Carlos"]
[Black "Seredyn, Dominik"]
[Result "1-0"]
[ECO "B20"]
[WhiteElo "2108"]
[BlackElo "1720"]
[Annotator "TA"]
[PlyCount "49"]
[EventDate "2022.09.17"]
[EventCountry "POL"]
[SourceTitle "playchess.com"]
[Source "ChessBase"]
[SourceQuality "1"]
[TimeControl "900+10"]

{[%evp 10,49,15,10,14,29,30,35,43,8,2,-8,20,20,29,31,43,40,60,50,46,51,117,71,99,103,163,145,202,194,203,197,199,185,190,200,259,262,248,260,1753,1584]} 1. e4 {[%emt 0:00:03][%cal Be2e4,Be4e5][%mdl 32]} c5 {[%emt 0:00:01]} 2. b3 {[%emt 0:00:02]} Nc6 {[%emt 0:00:13]} 3. Bb2 {[%emt 0:00:03]} Nf6 {[%emt 0:00:41]} 4. e5 {[%emt 0:00:12]} Nd5 {[%emt 0:00:05]} 5. Nf3 {[%emt 0:00:17]} d6 {[%emt 0:00:19]} 6. Bb5 {[%emt 0:00:11]} Bd7 {[%emt 0:00:06] B30: Sicilian: 2...Nc6 3 Bb5, lines without ...g6.} 7. exd6 {[%emt 0:00:17]} exd6 {[%emt 0:00:03]} ({Don't do} 7... Ncb4 8. Bxd7+ Qxd7 9. O-O $14) 8. O-O {[%emt 0:00:04]} Be7 {[%emt 0:01:49] [#] White is slightly better.} 9. Nc3 $146 {[%emt 0:01:21]} ({Predecessor:} 9. d4 Bf6 10. c4 Nde7 11. Nbd2 O-O 12. Ne4 Ng6 13. Nxd6 Nxd4 14. Nxb7 Qc7 15. Bxd4 cxd4 16. Bxd7 Qxd7 {0-1 (43) Reprintsev,A (2353)-Tregubov,P (2537) Chess.com INT 2022}) 9... Nc7 {[%emt 0:00:18]} 10. Bc4 {[%emt 0:00:57]} Be6 {[%emt 0:01:21]} 11. Bxe6 {[%emt 0:00:46]} fxe6 {[%emt 0:00:09]} 12. d4 {[%emt 0:00:03]} cxd4 {[%emt 0:00:58]} 13. Nxd4 {[%emt 0:00:02]} Nxd4 14. Qxd4 {[%emt 0:00:02]} O-O {[%emt 0:00:46]} 15. Rad1 {[%emt 0:00:37]} e5 {[%emt 0:00:53]} (15... Rf7 $14) 16. Qe4 {[%emt 0:00:16]} (16. Qc4+ $142 Kh8 17. Ne4) 16... Qc8 {[%emt 0:01:35]} 17. f4 {[%emt 0:00:19] White is more active.} Ne6 {[%emt 0:02:39] [#]} (17... Rb8 $16) 18. Nd5 $1 $18 {[%emt 0:00:22]} (18. fxe5 $6 Qc5+ 19. Kh1 Rxf1+ 20. Rxf1 dxe5 $16) 18... Bf6 {[%emt 0:01:00]} (18... Qc5+ $16 19. Kh1 Bf6) 19. fxe5 {[%emt 0:02:04]} dxe5 {[%emt 0:00:07]} 20. Bxe5 {[%emt 0:04:20]} Qc5+ {[%emt 0:01:24]} 21. Kh1 {[%emt 0:00:03]} Bxe5 {[%emt 0:00:16]} 22. Qxe5 {[%emt 0:00:02]} Rfe8 {[%emt 0:00:49]} 23. c4 {[%emt 0:00:08]} ({Don't take} 23. Qf5 $6 Kh8 24. c4 Rad8 $18) 23... Rad8 {[%emt 0:00:36]} 24. h3 {[%emt 0:00:07]} Nf8 $2 {[%emt 0:01:18] [#]} (24... Kh8 25. Rf7 a5) 25. Nf6+ $1 {[%emt 0:00:06][%mdl 512] Weighted Error Value: White=0.06 (flawless) /Black=0.23 (precise)} 1-0